fUSD/lending_fUSD_20241118
["ID","MTS","AMOUNT","RATE_DAILY","PERIOD"]
[342516203,1731951046004,-1256.14113191,0.0001,2]
[342516213,1731951362354,532.54,8.229e-05,2]
[342516214,1731951455377,900.0,0.000236,120]
[342516215,1731951569822,200.0,8.243e-05,2]
[342516216,1731951659753,250.0,8.272e-05,2]
[342516217,1731951706152,504.52,8.219e-05,2]
[342516218,1731951718232,400.0,0.000234,120]
[342516219,1731951727770,1000.0,8.272e-05,2]
[342516220,1731951762502,320.99,8.26e-05,2]
[342516222,1731952013880,945.04,8.243e-05,2]
[342516227,1731952149479,-392.52,8.957e-05,2]
[342516228,1731952149503,-150.0,8.959e-05,2]
[342516229,1731952149531,-392.52,8.959e-05,2]
[342516230,1731952149555,-392.52,8.962e-05,2]
[342516231,1731952149583,-392.52,8.964e-05,2]
[342516232,1731952149608,-392.52,8.966e-05,2]
[342516233,1731952149631,-392.52,8.969e-05,2]
[342516234,1731952149660,-392.52,8.971e-05,2]
[342516235,1731952149683,-392.52,8.973e-05,2]
[342516236,1731952149709,-392.52,8.976e-05,2]
[342516237,1731952149733,-392.52,8.978e-05,2]
[342516238,1731952149757,-392.52,8.98e-05,2]
[342516239,1731952149781,-392.52,8.983e-05,2]
[342516240,1731952149806,-392.52,8.985e-05,2]
[342516241,1731952149833,-392.52,8.988e-05,2]
[342516242,1731952149857,-392.52,8.99e-05,2]
[342516243,1731952149882,-392.52,8.992e-05,2]
[342516244,1731952149906,-392.52,8.995e-05,2]
[342516245,1731952149929,-392.52,8.997e-05,2]
[342516246,1731952149953,-392.52,8.999e-05,2]
[342516247,1731952151439,480.47,8.261e-05,2]
[342516254,1731952232145,-1700.0,9e-05,3]
[342516255,1731952232156,-392.52,9.002e-05,2]
[342516256,1731952232165,-865.26,9.041e-05,2]
[342516257,1731952232175,-591.17,9.065e-05,2]
[342516258,1731952232185,-3400.0,9.1e-05,3]
[342516259,1731952232195,-150.0,9.178e-05,2]
[342516260,1731952232205,-300.0,9.178e-05,2]
[342516261,1731952232215,-300.0,9.199e-05,2]
[342516262,1731952232225,-917.082,9.2e-05,2]
[342516263,1731952232235,-5100.0,9.2e-05,3]
[342516264,1731952232244,-440.49,9.241e-05,2]
[342516265,1731952232255,-763.3,9.241e-05,2]
[342516266,1731952232264,-532.54,9.258e-05,2]
[342516267,1731952232274,-480.47,9.294e-05,2]
[342516268,1731952232284,-6800.0,9.3e-05,3]
[342516269,1731952232294,-1000.0,9.306e-05,2]
[342516270,1731952232304,-968.67,9.378e-05,2]
[342516271,1731952232313,-150.0,9.378e-05,2]
[342516272,1731952232322,-362.36,9.378e-05,2]
[342516273,1731952232331,-300.0,9.378e-05,2]
[342516274,1731952232341,-433.34,9.378e-05,2]
[342516275,1731952232351,-433.34,9.378e-05,2]
[342516276,1731952232360,-968.67,9.378e-05,2]
[342516277,1731952232370,-968.67,9.378e-05,2]
[342516278,1731952232383,-433.34,9.378e-05,2]
[342516279,1731952232392,-968.67,9.378e-05,2]
[342516280,1731952232402,-433.34,9.378e-05,2]
[342516281,1731952232411,-968.67,9.378e-05,2]
[342516282,1731952232421,-252.89,9.378e-05,2]
[342516283,1731952232430,-8500.0,9.4e-05,3]
[342516284,1731952232440,-1700.0,9.5e-05,3]
[342516285,1731952232450,-1973.9197,9.6e-05,2]
[342516286,1731952232459,-1571.305,9.6e-05,2]
[342516287,1731952232469,-1700.0,9.6e-05,3]
[342516288,1731952232478,-2022.913,9.6e-05,2]
[342516289,1731952232488,-160.499166,9.63e-05,5]
[342516290,1731952232497,-1000.0,9.668e-05,2]
[342516291,1731952232507,-325.83,9.67e-05,2]
[342516292,1731952232517,-374.26,9.67e-05,2]
[342516293,1731952232530,-25269.36,9.67e-05,2]
[342516294,1731952232539,-150.99,9.67e-05,2]
[342516295,1731952232549,-9999.99,9.67e-05,2]
[342516296,1731952232558,-1092.42,9.67e-05,2]
[342516297,1731952232569,-9999.99,9.67e-05,2]
[342516298,1731952232579,-560.1,9.67e-05,2]
[342516299,1731952232588,-786.56,9.67e-05,2]
[342516300,1731952232599,-410.43,9.67e-05,2]
[342516301,1731952232609,-479.03,9.67e-05,2]
[342516302,1731952232618,-25942.0173,9.7e-05,2]
[342516303,1731952232631,-35248.1572,9.7e-05,2]
[342516304,1731952232640,-3923.9366,9.7e-05,2]
[342516305,1731952232649,-1700.0,9.7e-05,3]
[342516306,1731952232659,-150.0,9.726e-05,2]
[342516307,1731952232668,-1500.0,9.742e-05,2]
[342516308,1731952232677,-150.0,9.744e-05,2]
[342516309,1731952232687,-549.36500078,9.745e-05,2]
[342516310,1731952232696,-1500.0,9.75e-05,2]
[342516311,1731952232704,-150.0,9.753e-05,2]
[342516313,1731952232713,-150.0,9.765e-05,2]
[342516315,1731952232722,-150.0,9.767e-05,2]
[342516317,1731952232732,-150.0,9.769e-05,2]
[342516319,1731952232741,-505.00873855,9.773e-05,2]
[342516321,1731952232751,-500.0,9.773e-05,2]
[342516323,1731952232760,-500.0,9.773e-05,2]
[342516325,1731952232769,-500.0,9.773e-05,2]
[342516327,1731952232778,-150.0,9.786e-05,2]
[342516329,1731952232787,-150.0,9.787e-05,2]
[342516331,1731952232797,-150.0,9.788e-05,2]
[342516333,1731952232806,-1500.0,9.793e-05,2]
[342516335,1731952232815,-1500.0,9.796e-05,2]
[342516337,1731952232824,-6784.5652,9.8e-05,2]
[342516339,1731952232837,-30076.501,9.8e-05,2]
[342516341,1731952232847,-3251.98414757,9.8e-05,2]
[342516343,1731952232856,-876.8254,9.8e-05,2]
[342516345,1731952232865,-100000.0,9.8e-05,2]
[342516347,1731952232877,-107771.3339,9.8e-05,2]
[342516349,1731952232886,-38170.43439535,9.8e-05,2]
[342516351,1731952232895,-1700.0,9.8e-05,3]
[342516353,1731952232905,-1500.0,9.809e-05,2]
[342516355,1731952232914,-150.0,9.811e-05,2]
[342516357,1731952232923,-1500.0,9.821e-05,2]
[342516359,1731952232933,-150.0,9.822e-05,2]
[342516361,1731952232942,-150.0,9.823e-05,2]
[342516363,1731952232951,-150.0,9.836e-05,2]
[342516365,1731952232961,-150.0,9.842e-05,2]
[342516367,1731952232970,-150.0,9.844e-05,2]
[342516369,1731952232979,-150.0,9.846e-05,2]
[342516371,1731952232988,-150.0,9.853e-05,2]
[342516372,1731952232997,-150.0,9.86e-05,2]
[342516374,1731952233006,-263.95818277,9.861e-05,2]
[342516375,1731952233015,-500.0,9.863e-05,2]
[342516377,1731952233025,-500.0,9.863e-05,2]
[342516379,1731952233034,-500.0,9.863e-05,2]
[342516381,1731952233044,-501.65142046,9.863e-05,2]
[342516383,1731952233054,-500.0,9.863e-05,2]
[342516385,1731952233064,-500.0,9.863e-05,2]
[342516387,1731952233074,-500.0,9.863e-05,2]
[342516389,1731952233084,-500.0,9.863e-05,2]
[342516391,1731952233094,-156.33,9.863e-05,2]
[342516393,1731952233104,-495.60401241,9.863e-05,2]
[342516395,1731952233114,-500.0,9.863e-05,2]
[342516397,1731952233124,-500.0,9.863e-05,2]
[342516399,1731952233136,-500.0,9.863e-05,2]
[342516401,1731952233146,-500.0,9.863e-05,2]
[342516403,1731952233157,-600.85812057,9.863e-05,2]
[342516405,1731952233167,-509.81,9.863e-05,2]
[342516407,1731952233177,-500.0,9.863e-05,2]
[342516409,1731952233189,-500.0,9.863e-05,2]
[342516411,1731952233198,-500.0,9.863e-05,2]
[342516413,1731952233208,-500.0,9.863e-05,2]
[342516415,1731952233219,-161.62050358,9.863e-05,2]
[342516417,1731952233229,-500.0,9.863e-05,2]
[342516419,1731952233239,-500.0,9.863e-05,2]
[342516421,1731952233250,-500.0,9.863e-05,2]
[342516423,1731952233260,-500.0,9.863e-05,2]
[342516425,1731952233270,-500.0,9.863e-05,2]
[342516427,1731952233280,-2226.61,9.863e-05,2]
[342516429,1731952233289,-500.0,9.863e-05,2]
[342516431,1731952233299,-291.70386867,9.863e-05,2]
[342516433,1731952233308,-2244.33,9.863e-05,2]
[342516434,1731952233318,-500.0,9.863e-05,2]
[342516436,1731952233328,-500.0,9.863e-05,2]
[342516438,1731952233337,-500.0,9.863e-05,2]
[342516440,1731952233347,-500.0,9.863e-05,2]
[342516442,1731952233357,-500.0,9.863e-05,2]
[342516444,1731952233367,-500.0,9.863e-05,2]
[342516446,1731952233379,-500.0,9.863e-05,2]
[342516448,1731952233389,-500.0,9.863e-05,2]
[342516449,1731952233399,-500.0,9.863e-05,2]
[342516451,1731952233409,-500.0,9.863e-05,2]
[342516453,1731952233419,-500.0,9.863e-05,2]
[342516454,1731952233429,-500.0,9.863e-05,2]
[342516456,1731952233438,-500.0,9.863e-05,2]
[342516458,1731952233448,-671.35,9.863e-05,2]
[342516460,1731952233459,-500.0,9.863e-05,2]
[342516461,1731952233468,-500.0,9.863e-05,2]
[342516463,1731952233478,-500.0,9.863e-05,2]
[342516465,1731952233488,-500.0,9.863e-05,2]
[342516467,1731952233498,-1142.76,9.863e-05,2]
[342516468,1731952233508,-500.0,9.863e-05,2]
[342516470,1731952233519,-500.0,9.863e-05,2]
[342516472,1731952233535,-500.0,9.863e-05,2]
[342516474,1731952233546,-182.34401315,9.863e-05,2]
[342516476,1731952233555,-150.0,9.872e-05,2]
[342516478,1731952233567,-150.0,9.875e-05,2]
[342516479,1731952233578,-150.0,9.88e-05,2]
[342516481,1731952233588,-150.0,9.883e-05,2]
[342516483,1731952233600,-150.0,9.896e-05,2]
[342516507,1731952233888,-2226.61,9.899e-05,2]
[342516509,1731952233902,-500.0,9.899e-05,2]
[342516511,1731952233912,-500.0,9.899e-05,2]
[342516513,1731952233922,-500.0,9.899e-05,2]
[342516515,1731952233932,-500.0,9.899e-05,2]
[342516516,1731952233942,-150.0,9.899e-05,2]
[342516518,1731952233952,-500.0,9.899e-05,2]
[342516520,1731952233963,-500.0,9.899e-05,2]
[342516522,1731952233973,-9617.0,9.9e-05,2]
[342516524,1731952233983,-1849.6058,9.9e-05,2]
[342516526,1731952233993,-2813.4572,9.9e-05,2]
[342516527,1731952234003,-11621.77452483,9.9e-05,2]
[342516529,1731952234013,-2000.0,9.9e-05,3]
[342516531,1731952234023,-1000.0,9.9e-05,2]
[342516533,1731952234033,-150.0,9.903e-05,2]
[342516535,1731952234044,-150.0,9.905e-05,2]
[342516537,1731952234054,-150.0,9.91e-05,2]
[342516539,1731952234064,-150.0,9.919e-05,2]
[342516540,1731952234074,-150.0,9.92e-05,2]
[342516542,1731952234084,-150.0,9.921e-05,2]
[342516544,1731952234094,-150.0,9.921e-05,2]
[342516546,1731952234104,-150.0,9.924e-05,2]
[342516548,1731952234114,-150.0,9.925e-05,2]
[342516549,1731952234124,-150.0,9.932e-05,2]
[342516551,1731952234136,-256.35464305,9.951e-05,2]
[342516553,1731952234147,-150.0,9.953e-05,2]
[342516555,1731952234157,-150.0,9.964e-05,2]
[342516557,1731952234167,-150.0,9.964e-05,2]
[342516558,1731952234177,-256.35464305,9.966e-05,2]
[342516560,1731952234187,-403.8453003,9.973e-05,2]
[342516562,1731952234197,-623.05372402,9.973e-05,2]
[342516564,1731952234206,-509.88122267,9.973e-05,2]
[342516566,1731952234216,-150.0,9.975e-05,2]
[342516567,1731952234225,-256.35464305,9.977e-05,2]
[342516569,1731952234235,-151.27000629,9.979e-05,2]
[342516571,1731952234245,-1500.0,9.979e-05,2]
[342516573,1731952234255,-175.947,9.983e-05,2]
[342516575,1731952234265,-150.0,9.983e-05,2]
[342516577,1731952234275,-256.35464305,9.989e-05,2]
[342516579,1731952234285,-990.25765749,9.99e-05,2]
[342516581,1731952234295,-19039.39904776,9.991e-05,2]
[342516583,1731952234304,-1377.52,9.991e-05,2]
[342516584,1731952234314,-500.0,9.992e-05,2]
[342516586,1731952234324,-500.0,9.992e-05,2]
[342516588,1731952234334,-500.0,9.992e-05,2]
[342516590,1731952234343,-551.56479787,9.992e-05,2]
[342516592,1731952234353,-500.0,9.992e-05,2]
[342516594,1731952234363,-500.0,9.992e-05,2]
[342516596,1731952234373,-500.0,9.992e-05,2]
[342516598,1731952234386,-500.0,9.992e-05,2]
[342516600,1731952234396,-500.0,9.992e-05,2]
[342516601,1731952234405,-500.0,9.992e-05,2]
[342516603,1731952234415,-500.0,9.997e-05,2]
[342516605,1731952234424,-500.0,9.997e-05,2]
[342516607,1731952234434,-500.0,9.997e-05,2]
[342516609,1731952234444,-411.36,9.997e-05,2]
[342516610,1731952234454,-500.0,9.997e-05,2]
[342516612,1731952234463,-500.0,9.997e-05,2]
[342516614,1731952234473,-500.0,9.997e-05,2]
[342516616,1731952234482,-509.81,9.997e-05,2]
[342516618,1731952234492,-500.0,9.997e-05,2]
[342516620,1731952234502,-500.0,9.997e-05,2]
[342516622,1731952234516,-500.0,9.997e-05,2]
[342516623,1731952234529,-500.0,9.997e-05,2]
[342516625,1731952234540,-2244.33,9.997e-05,2]
[342516627,1731952234549,-368.02,9.997e-05,2]
[342516629,1731952234558,-500.0,9.997e-05,2]
[342516631,1731952234568,-500.0,9.997e-05,2]
[342516632,1731952234579,-500.0,9.997e-05,2]
[342516634,1731952234589,-266.51279859,9.997e-05,2]
[342516636,1731952234600,-500.0,9.997e-05,2]
[342516638,1731952234610,-500.0,9.997e-05,2]
[342516640,1731952234620,-558.44784794,9.997e-05,2]
[342516641,1731952234632,-500.0,9.997e-05,2]
[342516643,1731952234642,-671.35,9.997e-05,2]
[342516645,1731952234651,-500.0,9.997e-05,2]
[342516647,1731952234660,-500.0,9.997e-05,2]
[342516649,1731952234670,-1142.76,9.997e-05,2]
[342516651,1731952234679,-500.0,9.997e-05,2]
[342516653,1731952234688,-390.30111677,9.998e-05,2]
[342516654,1731952234697,-206.40608529,9.998e-05,2]
[342516656,1731952234706,-500.0,9.998e-05,2]
[342516658,1731952234715,-500.0,9.998e-05,2]
[342516660,1731952234724,-500.0,9.998e-05,2]
[342516662,1731952234733,-500.0,9.998e-05,2]
[342516664,1731952234742,-500.0,9.998e-05,2]
[342516666,1731952234751,-500.0,9.998e-05,2]
[342516668,1731952234760,-500.0,9.998e-05,2]
[342516670,1731952234769,-500.0,9.998e-05,2]
[342516672,1731952234778,-500.0,9.998e-05,2]
[342516673,1731952234787,-502.32397499,9.998e-05,2]
[342516675,1731952234796,-509.81,9.998e-05,2]
[342516677,1731952234805,-501.64,9.998e-05,2]
[342516679,1731952234815,-500.0,9.998e-05,2]
[342516681,1731952234824,-301.29776525,9.998e-05,2]
[342516683,1731952234833,-500.0,9.998e-05,2]
[342516685,1731952234842,-500.0,9.998e-05,2]
[342516686,1731952234851,-500.0,9.998e-05,2]
[342516688,1731952234860,-500.0,9.998e-05,2]
[342516690,1731952234869,-500.0,9.998e-05,2]
[342516692,1731952234881,-500.0,9.998e-05,2]
[342516694,1731952234890,-500.0,9.998e-05,2]
[342516696,1731952234900,-500.0,9.998e-05,2]
[342516697,1731952234909,-2226.61,9.998e-05,2]
[342516699,1731952234919,-500.0,9.998e-05,2]
[342516701,1731952234928,-2244.33,9.998e-05,2]
[342516703,1731952234938,-500.0,9.998e-05,2]
[342516705,1731952234948,-446.52,9.998e-05,2]
[342516707,1731952234957,-500.0,9.998e-05,2]
[342516709,1731952234966,-500.0,9.998e-05,2]
[342516711,1731952234975,-618.94640431,9.998e-05,2]
[342516713,1731952234984,-500.0,9.998e-05,2]
[342516715,1731952234993,-500.0,9.998e-05,2]
[342516716,1731952235002,-500.0,9.998e-05,2]
[342516718,1731952235011,-500.0,9.998e-05,2]
[342516720,1731952235021,-671.35,9.998e-05,2]
[342516722,1731952235030,-500.0,9.998e-05,2]
[342516724,1731952235039,-172.02349732,9.998e-05,2]
[342516726,1731952235048,-500.0,9.998e-05,2]
[342516728,1731952235057,-1142.76,9.998e-05,2]
[342516729,1731952235067,-500.0,9.998e-05,2]
[342516731,1731952235076,-500.0,9.998e-05,2]
[342516733,1731952235085,-500.0,9.998e-05,2]
[342516735,1731952235095,-256.35464305,9.999e-05,2]
[342516737,1731952235104,-223.14418829,9.999e-05,2]
[342516739,1731952235113,-500.0,9.999e-05,2]
[342516741,1731952235122,-1500.0,9.999e-05,2]
[342516743,1731952235135,-500.0,9.999e-05,2]
[342516745,1731952235145,-167.52903661,9.999e-05,2]
[342516747,1731952235154,-500.0,9.999e-05,2]
[342516748,1731952235163,-500.0,9.999e-05,2]
[342516750,1731952235173,-500.0,9.999e-05,2]
[342516751,1731952235183,-500.0,9.999e-05,2]
[342516753,1731952235192,-393.51,9.999e-05,2]
[342516755,1731952235203,-500.0,9.999e-05,2]
[342516756,1731952235212,-500.0,9.999e-05,2]
[342516758,1731952235221,-495.15,9.999e-05,2]
[342516760,1731952235230,-500.0,9.999e-05,2]
[342516762,1731952235239,-500.0,9.999e-05,2]
[342516764,1731952235248,-500.0,9.999e-05,2]
[342516766,1731952235258,-500.0,9.999e-05,2]
[342516767,1731952235267,-500.0,9.999e-05,2]
[342516769,1731952235276,-444.36,9.999e-05,2]
[342516771,1731952235286,-500.0,9.999e-05,2]
[342516773,1731952235295,-500.0,9.999e-05,2]
[342516775,1731952235305,-500.0,9.999e-05,2]
[342516777,1731952235314,-500.0,9.999e-05,2]
[342516778,1731952235324,-500.0,9.999e-05,2]
[342516780,1731952235333,-500.0,9.999e-05,2]
[342516782,1731952235342,-500.0,9.999e-05,2]
[342516784,1731952235351,-567.92558553,9.999e-05,2]
[342516786,1731952235360,-500.0,9.999e-05,2]
[342516788,1731952235369,-327.43,9.999e-05,2]
[342516789,1731952235379,-500.0,9.999e-05,2]
[342516791,1731952235389,-500.0,9.999e-05,2]
[342516793,1731952235399,-500.0,9.999e-05,2]
[342516795,1731952235407,-500.0,9.999e-05,2]
[342516797,1731952235416,-505.51062815,9.999e-05,2]
[342516798,1731952235426,-478.38,9.999e-05,2]
[342516800,1731952235435,-509.81,9.999e-05,2]
[342516802,1731952235445,-509.81,9.999e-05,2]
[342516804,1731952235454,-509.81,9.999e-05,2]
[342516805,1731952235463,-509.81,9.999e-05,2]
[342516806,1731952235472,-509.81,9.999e-05,2]
[342516807,1731952235481,-509.81,9.999e-05,2]
[342516808,1731952235490,-509.81,9.999e-05,2]
[342516809,1731952235499,-509.81,9.999e-05,2]
[342516810,1731952235508,-509.81,9.999e-05,2]
[342516811,1731952235517,-509.81,9.999e-05,2]
[342516812,1731952235529,-509.81,9.999e-05,2]
[342516813,1731952235537,-509.81,9.999e-05,2]
[342516814,1731952235546,-509.81,9.999e-05,2]
[342516815,1731952235556,-509.81,9.999e-05,2]
[342516816,1731952235567,-509.81,9.999e-05,2]
[342516817,1731952235577,-509.81,9.999e-05,2]
[342516818,1731952235587,-509.81,9.999e-05,2]
[342516819,1731952235598,-509.81,9.999e-05,2]
[342516820,1731952235608,-509.81,9.999e-05,2]
[342516821,1731952235618,-509.81,9.999e-05,2]
[342516822,1731952235628,-509.9,9.999e-05,2]
[342516823,1731952235638,-500.0,9.999e-05,2]
[342516824,1731952235646,-500.0,9.999e-05,2]
[342516825,1731952235656,-500.0,9.999e-05,2]
[342516826,1731952235665,-500.0,9.999e-05,2]
[342516827,1731952235675,-500.0,9.999e-05,2]
[342516828,1731952235684,-508.6,9.999e-05,2]
[342516829,1731952235693,-574.67,9.999e-05,2]
[342516831,1731952235702,-500.0,9.999e-05,2]
[342516833,1731952235711,-500.0,9.999e-05,2]
[342516835,1731952235720,-500.0,9.999e-05,2]
[342516837,1731952235730,-630.88,9.999e-05,2]
[342516839,1731952235739,-500.0,9.999e-05,2]
[342516841,1731952235749,-500.0,9.999e-05,2]
[342516843,1731952235758,-500.0,9.999e-05,2]
[342516845,1731952235767,-500.0,9.999e-05,2]
[342516847,1731952235776,-631.14215021,9.999e-05,2]
[342516849,1731952235786,-500.0,9.999e-05,2]
[342516851,1731952235795,-500.0,9.999e-05,2]
[342516853,1731952235805,-500.0,9.999e-05,2]
[342516855,1731952235814,-586.01236194,9.999e-05,2]
[342516857,1731952235824,-500.0,9.999e-05,2]
[342516859,1731952235833,-500.0,9.999e-05,2]
[342516860,1731952235843,-2226.61,9.999e-05,2]
[342516862,1731952235852,-2226.61,9.999e-05,2]
[342516864,1731952235862,-2226.61,9.999e-05,2]
[342516866,1731952235872,-2226.61,9.999e-05,2]
[342516868,1731952235884,-2226.61,9.999e-05,2]
[342516870,1731952235893,-2226.61,9.999e-05,2]
[342516872,1731952235903,-2226.61,9.999e-05,2]
[342516874,1731952235912,-2226.61,9.999e-05,2]
[342516876,1731952235921,-2226.61,9.999e-05,2]
[342516878,1731952235931,-2226.61,9.999e-05,2]
[342516880,1731952235940,-2226.61,9.999e-05,2]
[342516882,1731952235949,-2226.61,9.999e-05,2]
[342516884,1731952235959,-2226.61,9.999e-05,2]
[342516886,1731952235968,-2226.61,9.999e-05,2]
[342516887,1731952235977,-2226.61,9.999e-05,2]
[342516889,1731952235987,-2226.61,9.999e-05,2]
[342516890,1731952235996,-2226.61,9.999e-05,2]
[342516891,1731952236005,-2226.61,9.999e-05,2]
[342516892,1731952236014,-2226.61,9.999e-05,2]
[342516893,1731952236024,-2226.61,9.999e-05,2]
[342516894,1731952236033,-2226.83813018,9.999e-05,2]
[342516895,1731952236043,-500.0,9.999e-05,2]
[342516896,1731952236052,-500.0,9.999e-05,2]
[342516897,1731952236061,-500.0,9.999e-05,2]
[342516898,1731952236070,-249.34395355,9.999e-05,2]
[342516899,1731952236080,-2244.33,9.999e-05,2]
[342516900,1731952236089,-2244.33,9.999e-05,2]
[342516901,1731952236099,-2244.33,9.999e-05,2]
[342516902,1731952236108,-2244.33,9.999e-05,2]
[342516903,1731952236118,-2244.33,9.999e-05,2]
[342516904,1731952236130,-2244.33,9.999e-05,2]
[342516905,1731952236140,-2244.33,9.999e-05,2]
[342516906,1731952236149,-2244.33,9.999e-05,2]
[342516907,1731952236158,-2244.33,9.999e-05,2]
[342516908,1731952236168,-2244.33,9.999e-05,2]
[342516909,1731952236177,-2244.33,9.999e-05,2]
[342516910,1731952236186,-2244.33,9.999e-05,2]
[342516911,1731952236196,-2244.33,9.999e-05,2]
[342516912,1731952236205,-2244.33,9.999e-05,2]
[342516913,1731952236215,-2244.33,9.999e-05,2]
[342516914,1731952236225,-2244.33,9.999e-05,2]
[342516915,1731952236234,-2244.33,9.999e-05,2]
[342516916,1731952236244,-2244.33,9.999e-05,2]
[342516917,1731952236254,-2244.33,9.999e-05,2]
[342516918,1731952236264,-2244.33,9.999e-05,2]
[342516919,1731952236273,-575.96,9.999e-05,2]
[342516920,1731952236283,-2244.36994166,9.999e-05,2]
[342516921,1731952236294,-500.0,9.999e-05,2]
[342516922,1731952236303,-500.0,9.999e-05,2]
[342516923,1731952236313,-500.0,9.999e-05,2]
[342516924,1731952236323,-500.0,9.999e-05,2]
[342516925,1731952236333,-500.0,9.999e-05,2]
[342516926,1731952236343,-500.0,9.999e-05,2]
[342516927,1731952236353,-500.0,9.999e-05,2]
[342516928,1731952236363,-500.0,9.999e-05,2]
[342516929,1731952236373,-195.02,9.999e-05,2]
[342516930,1731952236389,-391.48,9.999e-05,2]
[342516931,1731952236399,-500.0,9.999e-05,2]
[342516932,1731952236409,-500.0,9.999e-05,2]
[342516933,1731952236419,-500.0,9.999e-05,2]
[342516934,1731952236429,-500.0,9.999e-05,2]
[342516935,1731952236439,-285.71122893,9.999e-05,2]
[342516936,1731952236448,-500.0,9.999e-05,2]
[342516937,1731952236458,-500.0,9.999e-05,2]
[342516938,1731952236467,-605.28000001,9.999e-05,2]
[342516939,1731952236477,-500.0,9.999e-05,2]
[342516940,1731952236486,-500.0,9.999e-05,2]
[342516941,1731952236495,-500.0,9.999e-05,2]
[342516942,1731952236506,-500.0,9.999e-05,2]
[342516943,1731952236515,-500.0,9.999e-05,2]
[342516944,1731952236526,-500.0,9.999e-05,2]
[342516945,1731952236537,-500.0,9.999e-05,2]
[342516946,1731952236546,-500.0,9.999e-05,2]
[342516947,1731952236555,-500.0,9.999e-05,2]
[342516948,1731952236565,-500.0,9.999e-05,2]
[342516949,1731952236577,-633.5,9.999e-05,2]
[342516950,1731952236586,-500.0,9.999e-05,2]
[342516951,1731952236595,-500.0,9.999e-05,2]
[342516952,1731952236604,-500.0,9.999e-05,2]
[342516953,1731952236613,-500.0,9.999e-05,2]
[342516954,1731952236623,-500.0,9.999e-05,2]
[342516955,1731952236637,-671.35,9.999e-05,2]
[342516956,1731952236646,-500.0,9.999e-05,2]
[342516957,1731952236656,-671.35,9.999e-05,2]
[342516958,1731952236665,-500.0,9.999e-05,2]
[342516959,1731952236675,-671.35,9.999e-05,2]
[342516960,1731952236685,-671.35,9.999e-05,2]
[342516961,1731952236694,-500.0,9.999e-05,2]
[342516962,1731952236704,-616.56,9.999e-05,2]
[342516963,1731952236713,-671.35,9.999e-05,2]
[342516964,1731952236722,-671.35,9.999e-05,2]
[342516965,1731952236732,-671.35,9.999e-05,2]
[342516966,1731952236742,-671.35,9.999e-05,2]
[342516967,1731952236752,-671.35,9.999e-05,2]
[342516968,1731952236764,-671.35,9.999e-05,2]
[342516969,1731952236774,-671.35,9.999e-05,2]
[342516970,1731952236784,-671.35,9.999e-05,2]
[342516971,1731952236793,-500.0,9.999e-05,2]
[342516972,1731952236803,-671.35,9.999e-05,2]
[342516973,1731952236814,-671.35,9.999e-05,2]
[342516974,1731952236823,-500.0,9.999e-05,2]
[342516975,1731952236833,-671.35,9.999e-05,2]
[342516976,1731952236842,-500.0,9.999e-05,2]
[342516977,1731952236851,-671.35,9.999e-05,2]
[342516978,1731952236860,-500.0,9.999e-05,2]
[342516979,1731952236870,-671.35,9.999e-05,2]
[342516980,1731952236884,-500.0,9.999e-05,2]
[342516981,1731952236893,-671.35,9.999e-05,2]
[342516982,1731952236903,-500.0,9.999e-05,2]
[342516983,1731952236913,-671.35,9.999e-05,2]
[342516984,1731952236922,-500.0,9.999e-05,2]
[342516985,1731952236932,-500.0,9.999e-05,2]
[342516986,1731952236942,-500.0,9.999e-05,2]
[342516987,1731952236951,-500.0,9.999e-05,2]
[342516988,1731952236960,-500.0,9.999e-05,2]
[342516989,1731952236969,-150.0,9.999e-05,2]
[342516990,1731952236978,-500.0,9.999e-05,2]
[342516991,1731952236988,-500.0,9.999e-05,2]
[342516992,1731952236998,-500.0,9.999e-05,2]